Cogmind - Beta 13 @@@ ROGUE MODE // 2024.04.18 @ 19:24:12 Player: kucifra Result: Destroyed by H-55 Commando with Assault Rifle Performance ------------- Evolutions (2) 1000 Regions Visited (3) 600 Robots Destroyed (43) 215 Value Destroyed (1151) 1151 Prototype IDs (0) 0 Alien Tech Used (0) 0 Bonus (0) 0 TOTAL SCORE: 2966 Bonus ------- None Cogmind --------- Core Integrity 0/550 Matter 293/500 Energy 100/100 System Corruption 0% Temperature Cool (0) Movement Core (750) Ox14 Location -8/Materials Parts ------- > --- POWER (1) -------- (None) > --- PROPULSION (3) --- (None) > --- UTILITY (4) ------ High-capacity Storage Unit High-capacity Matter Pod Transport Network Coupler > --- WEAPON (3) ------- (None) > --- INVENTORY (20) --- Ion Engine Light Ion Engine Subdweller Power Source Spiked Treads Large Storage Unit Structural Scanner Visual Processing Unit Subdweller Optics ECM Suite Subdweller Shrapnel Launcher Peak State ------------ > --- POWER ------------ Light Ion Engine > --- PROPULSION ------- Light Treads Light Treads Spiked Treads > --- UTILITY ---------- High-capacity Storage Unit Subdweller Optics Targeting Computer Hardened Medium Armor Plating > --- WEAPON ----------- Particle Gun Subdweller Machine Gun Gauss Cannon > --- INVENTORY -------- Ion Engine Light Ion Engine Subdweller Power Source Light Treads Heat Sink Large Storage Unit High-capacity Matter Pod Structural Scanner Visual Processing Unit Transport Network Coupler ECM Suite Improved Light Armor Plating Subdweller Beam Cannon Assault Rifle Assault Rifle Battle Cannon Subdweller Shrapnel Launcher [Rating: 22] Favorites ----------- Power Light Nuclear Core Engine Light Ion Engine Power Core Light Nuclear Core Propulsion Light Treads Treads Light Treads Utility High-capacity Storage Unit Device Heat Sink Storage High-capacity Storage Unit Processor Transport Network Coupler Protection Improved Light Armor Plating Weapon Assault Rifle Energy Gun Particle Gun Energy Cannon Subdweller Beam Cannon Ballistic Gun Assault Rifle Ballistic Cannon Gauss Cannon Build | -11 -10 -10 -8 ------- Run | Yrd Mat Sub Mat Slots Evolved 4 | . . . 4 Power . | . . . . Propulsion 1 | . . . 1 Utility 2 | . . . 2 Weapon 1 | . . . 1 Parts Attached 47 | 6 12 8 21 Power 7 | 1 2 2 2 Engine 3 | 1 . 1 1 Core 4 | . 2 1 1 Reactor . | . . . . Propulsion 11 | 2 3 3 3 Treads 11 | 2 3 3 3 Leg . | . . . . Wheel . | . . . . Hover . | . . . . Flight . | . . . . Utility 13 | 1 3 1 8 Device 4 | . 2 1 1 Storage 3 | 1 1 . 1 Processor 2 | . . . 2 Hackware . | . . . . Protection 4 | . . . 4 Artifact . | . . . . Weapon 16 | 2 4 2 8 Energy Gun 3 | 1 1 . 1 Energy Cannon 2 | . . 1 1 Ballistic Gun 9 | 1 3 1 4 Ballistic Cannon 2 | . . . 2 Launcher . | . . . . Special Weapon . | . . . . Impact Weapon . | . . . . Slashing Weapon . | . . . . Piercing Weapon . | . . . . Special Melee Weapon . | . . . . Unidentified Prototypes . | . . . . Parts Lost 20 | . . 4 16 Power 4 | . . 2 2 Propulsion 4 | . . 1 3 Utility 4 | . . . 4 Weapon 8 | . . 1 7 Highest Loss Streak 8 | . . 2 8 To Critical Strikes . | . . . . Average Slot Usage (%) 93 | . 99 97 70 Engine 4 | . 2 5 5 Core 8 | . 11 8 2 Treads 24 | . 27 27 12 Device 12 | . 13 14 3 Storage 13 | . 14 14 10 Processor 1 | . . . 8 Protection 1 | . . . 7 Energy Gun 6 | . 14 1 1 Energy Cannon 5 | . . 12 3 Ballistic Gun 12 | . 13 12 8 Ballistic Cannon 1 | . . . 5 Naked Turns . | . . . . Heaviest Build 69 | 11 51 59 69 Greatest Support 60 | 40 40 40 60 Greatest Overweight (x) 22 | 1 2 1 22 Average Overweight (x) 1 | . . 1 5 Largest Inventory Capacity 20 | 8 20 20 20 Average Capacity 17 | 7 14 20 20 Most Carried 20 | 2 14 20 17 Average Carried 13 | 1 9 17 13 Final Capacity 20 | 8 20 20 20 Final Carried 18 | 2 14 18 10 Class Distribution -------------------- 72% | Scavenger-Mutant 19% | Mutant 5% | Scavenger-Gunner Dominant Class ---------------- Scavenger-Mutant | -10/Materials Scavenger-Mutant | -10/Subcaves Mutant | -8/Materials Resources | -11 -10 -10 -8 ----------- Run | Yrd Mat Sub Mat Matter Collected 1140 | 192 276 343 329 Remotely . | . . . . Salvage Created 1304 | . 318 550 436 Parts 79 | . 25 27 27 Haulers Intercepted 2 | . 2 . . Recyclers Shooed . | . . . . Parts Field Recycled . | . . . . Retrieved Matter . | . . . . Parts Self-Destructed 10 | . . 10 . Prevented . | . . . . Kills | -11 -10 -10 -8 ------- Run | Yrd Mat Sub Mat Combat Hostiles Destroyed 35 | . 8 12 15 Guns 21 | . 8 5 8 Cannons 13 | . . 6 7 Classes Destroyed 9 | . 5 2 2 Builder 2 | . . . 2 Tunneler 1 | . . . 1 Hauler 2 | . 2 . . Operator 1 | . 1 . . Watcher 2 | . 2 . . Swarmer 13 | . 5 . 8 Grunt 13 | . 3 4 6 Sentry 2 | . . 1 1 Subdweller 7 | . . 7 . Best Kill Streak 6 | . 4 4 6 Combat Bots Only 4 | . 3 4 4 Max Kills in Single Turn 2 | . 2 1 1 Gunslinging 1 | . 1 . . Exploded . | . . . . Melee . | . . . . Uniques/NPCs Destroyed . | . . . . Combat | -11 -10 -10 -8 -------- Run | Yrd Mat Sub Mat Hostile Shots Fired 294 | . 45 56 193 Missed 74 | . 9 17 48 Damage Taken 3188 | . 337 757 2094 Core 658 | . 6 95 557 Absorbed by Shields . | . . . . Core Remaining (%) 79 | 100 . 59 . Volleys Fired 109 | . 35 30 44 Largest 3 | . 2 2 3 Hottest 148 | . 85 110 148 Shots Fired 222 | . 73 56 93 Gun 148 | . 73 31 44 Cannon 74 | . . 25 49 Launcher . | . . . . Special . | . . . . Kinetic 136 | . 36 25 75 Thermal 86 | . 37 31 18 Explosive . | . . . . Electromagnetic . | . . . . Robot Hit Streak 30 | . 8 26 30 Robot Miss Streak 5 | . 4 2 5 Penetration Max 1 | . . . 1 Secondary Targets 3 | . 2 1 . Max Gunslinging Chain 1 | . 1 1 . Shots Hit Robots 125 | . 36 41 48 Core Hits 61 | . 20 16 25 Critical Kills 1 | . . 1 . Critical Parts Destroyed 1 | . 1 . . Critical Strikes 4 | . 2 1 1 Burn 1 | . 1 . . Meltdown 1 | . . 1 . Destroy 1 | . 1 . . Blast 1 | . . . 1 Melee Attacks . | . . . . Impact . | . . . . Slashing . | . . . . Piercing . | . . . . Sneak Attacks . | . . . . Combat Hostiles . | . . . . Follow-up Attacks . | . . . . Damage Inflicted 2450 | . 474 881 1095 Guns 1171 | . 474 341 356 Cannons 1276 | . . 540 736 Explosions . | . . . . Melee . | . . . . Ramming 3 | . . . 3 Kinetic 1346 | . 167 289 890 Thermal 1101 | . 307 592 202 Explosive . | . . . . Electromagnetic . | . . . . Impact . | . . . . Slashing . | . . . . Piercing . | . . . . Highest Corruption 2 | . 2 2 . Average Corruption 1 | . 1 2 . Corruption Purged . | . . . . Corruption Blocked . | . . . . Effects 48 | . 21 27 . Message Errors 11 | . 5 6 . Matter Fused 9 | . 2 7 . Heat Flow Errors 6 | . 2 4 . Energy Discharges 6 | . 2 4 . Parts Fused 1 | . 1 . . Data Loss (minor) 5 | . 2 3 . Data Loss (major) 4 | . 2 2 . Misfires 4 | . 3 1 . Alerts 2 | . 2 . . Overload Shots . | . . . . Overflow Damage 6 | . . . 6 Projectiles 6 | . . . 6 Explosions . | . . . . Melee . | . . . . Knockbacks 8 | . . . 8 Impact . | . . . . Kinetic 6 | . . . 6 Secondary 2 | . . . 2 Self-Inflicted Damage . | . . . . Shots . | . . . . Rammed 1 | . . . 1 Targets Rammed 1 | . . . 1 Kicked . | . . . . Crushed . | . . . . Highest Temperature 550 | . 259 151 550 Average Temperature 147 | . 63 57 227 Received Heat Transfer 894 | . 75 180 639 Effects 16 | . . . 16 Shutdowns 3 | . . . 3 Energy Bleed 1 | . . . 1 Interference 2 | . . . 2 Matter Decay 4 | . . . 4 Short Circuit 2 | . . . 2 Damage (minor) 2 | . . . 2 Damage (core) 2 | . . . 2 Siege Activations . | . . . . Robots Corrupted . | . . . . Combat Hostiles . | . . . . Parts Fried . | . . . . Impact Corruptions . | . . . . Robots Melted 1 | . . 1 . Combat Hostiles 1 | . . 1 . Parts Melted 4 | . . 4 . Heat Transferred 1998 | . 851 814 333 Parts Sabotaged . | . . . . Parts Stolen . | . . . . Parts Stripped . | . . . . Power Chain Reactions . | . . . . Alert | -11 -10 -10 -8 ------- Run | Yrd Mat Sub Mat Peak Influence 248 | . 248 . 218 Initial . | . . . . Average 61 | . 45 . 99 Maximum Alert Level 1 | . 1 . 1 Low Security (%) 92 | 100 97 . 81 Level 1 7 | . 2 . 18 Level 2 . | . . . . Level 3 . | . . . . Level 4 . | . . . . Level 5 . | . . . . High Security . | . . . . Max Security . | . . . . Squads Dispatched 3 | . 1 . 2 Investigation . | . . . . Extermination . | . . . . Reinforcement 3 | . 1 . 2 Assault . | . . . . Garrison . | . . . . Intercept . | . . . . Searches Triggered . | . . . . Construction Impeded 1 | . . . 1 Haulers Reinforced . | . . . . Active Scanning Responses . | . . . . Cargo Convoy Interrupts . | . . . . Stealth | -11 -10 -10 -8 --------- Run | Yrd Mat Sub Mat Distress Signals 1 | . . . 1 Communications Jammed . | . . . . Distress Signals . | . . . . Times Spotted 60 | . 25 12 23 Peak Tracking Total 6 | . 3 3 6 Tactical Retreats 11 | . 8 . 3 Traps | -11 -10 -10 -8 ------- Run | Yrd Mat Sub Mat Traps Triggered 2 | . 2 . . Indirectly . | . . . . Trap Hack Attempts . | . . . . Triggered . | . . . . Disarmed . | . . . . Reprogrammed . | . . . . Reused . | . . . . Traps Extracted . | . . . . Installed . | . . . . Triggered . | . . . . Machines | -11 -10 -10 -8 ---------- Run | Yrd Mat Sub Mat Machines Disabled 2 | . 1 . 1 Max in Single Turn 1 | . 1 . 1 Machines Repaired . | . . . . Machines Dismantled . | . . . . Machines Sabotaged . | . . . . Overloaded Fab Kills . | . . . . Hacking | -11 -10 -10 -8 --------- Run | Yrd Mat Sub Mat Machines Accessed 7 | . 5 1 1 Terminals 5 | . 5 . . Fabricators . | . . . . Repair Stations . | . . . . Recycling Units . | . . . . Scanalyzers 1 | . . . 1 Garrison Access . | . . . . Total Hacks 20 | . 15 3 2 Successful 12 | . 7 3 2 Failed 8 | . 8 . . Catastrophic . | . . . . Database Lockouts . | . . . . Manual 12 | . 12 . . Terminals 15 | . 15 . . Fabricators . | . . . . Repair Stations . | . . . . Recycling Units . | . . . . Scanalyzers 2 | . . . 2 Garrison Access . | . . . . Terminal Hacks 7 | . 4 3 . Record 4 | . 1 3 . Robot Analysis 3 | . 3 . . Fabricator Hacks . | . . . . Repair Station Hacks . | . . . . Recycling Unit Hacks . | . . . . Scanalyzer 2 | . . . 2 Insert Component 1 | . . . 1 Analyze 1 | . . . 1 Garrison Access Hacks . | . . . . Unauthorized Hacks 3 | . 3 . . Terminals 3 | . 3 . . Botnet 2 | . 2 . . Operators 1 | . 1 . . Fabricators . | . . . . Repair Stations . | . . . . Recycling Units . | . . . . Scanalyzers . | . . . . Garrison Access . | . . . . Data Cores Recovered . | . . . . Used . | . . . . Hacking Detections 5 | . 5 . . Full Trace Events 1 | . 1 . . Feedback Events 1 | . 1 . . Corruption 1 | . 1 . . Feedback Blocked . | . . . . Robot Schematics Acquired . | . . . . Robots Built . | . . . . Authchips . | . . . . Time . | . . . . Total Robot Build Rating . | . . . . Part Schematics Acquired 1 | . . . 1 Parts Built . | . . . . Authchips . | . . . . Time . | . . . . Total Part Build Rating . | . . . . Parts Repaired . | . . . . Time . | . . . . Parts Recycled . | . . . . Recycled Matter . | . . . . Retrieved Matter . | . . . . Retrieved Components . | . . . . Parts Scanalyzed 1 | . . . 1 Part Schematics Acquired 1 | . . . 1 Parts Damaged . | . . . . Bothacking | -11 -10 -10 -8 ------------ Run | Yrd Mat Sub Mat Used RIF Installer . | . . . . Robots Hacked . | . . . . Non-combat . | . . . . Combat . | . . . . Robot Hacks Applied . | . . . . Relay Couplers Released . | . . . . Fabnet Peak Effective % . | . . . . Robots Rewired . | . . . . Allies Hacked . | . . . . Hacks Repelled . | . . . . Allies | -11 -10 -10 -8 -------- Run | Yrd Mat Sub Mat Total Allies . | . . . . Largest Group . | . . . . Highest-Rated Group . | . . . . Highest-Rated Ally . | . . . . Total Orders . | . . . . Ally Attacks . | . . . . Total Damage . | . . . . Kills . | . . . . Allies Corrupted . | . . . . Allies Melted . | . . . . Intel | -11 -10 -10 -8 ------- Run | Yrd Mat Sub Mat Robot Analysis Total 3 | . 3 . . Derelict Logs Recovered . | . . . . Drone Launches . | . . . . Drone Recoveries . | . . . . Exploration | -11 -10 -10 -8 ------------- Run | Yrd Mat Sub Mat Turns Passed 4248 | 63 1624 1764 797 Spaces Moved 1509 | 38 650 676 145 Core 45 | 8 . . 37 Treads 1464 | 30 650 676 108 Legs . | . . . . Wheels . | . . . . Hover . | . . . . Flight . | . . . . Fastest Speed 50 | 50 160 240 160 Average Speed 237 | 139 197 245 408 Slowest Speed 1150 | 160 320 250 1150 Overloaded Moves . | . . . . Propulsion Burnouts . | . . . . Robots Hopped . | . . . . Cave-ins Triggered . | . . . . Exploration Rate (%) 38 | 4 91 45 14 Regions Visited 3 Branch Regions 1 Pre-discovered Areas 1 | . . 1 . Known Exits Taken . | . . . . Unknown Exits Taken 3 | 1 1 1 . Scrap Searched 3 | . . 3 . Spaces Dug . | . . . . Terrain Destroyed 18 | . . 1 17 Melee . | . . . . Projectile 18 | . . 1 17 AOE . | . . . . Terrain Rammed . | . . . . Walls Destroyed . | . . . . Machines Disabled . | . . . . Actions | -11 -10 -10 -8 --------- Run | Yrd Mat Sub Mat Total 1965 | 45 928 727 265 Wait 262 | . 204 8 50 Move 1506 | 37 649 675 145 Hop . | . . . . Pick Up 27 | 2 18 6 1 Fast Attach 11 | 6 3 1 1 Attach 18 | . 1 3 14 Detach 3 | . . . 3 Swap 18 | . 8 4 6 Drop 10 | . 10 . . Fire 109 | . 35 30 44 Melee . | . . . . Ram . | . . . . Kick . | . . . . Crush 1 | . . . 1 Escape Stasis . | . . . . Rewire . | . . . . Trap . | . . . . Miscellaneous . | . . . . Route ------- -11/Scrapyard -10/Materials (discovered 5 exits: [*Mat x3] / [*Min] / *Sub) -10/Subcaves -8/Materials History --------- Turn | Location | Event 8 | -11/Scrapyard | Discovered new exit (range 16) 64 | -11/Scrapyard | Entered Materials 341 | -10/Materials | Build established: Mutant 558 | -10/Materials | Discovered new exit (range 7) 642 | -10/Materials | Discovered new exit (range 15) 645 | -10/Materials | Discovered new exit (range 9) 683 | -10/Materials | Build established: Scavenger-Mutant 1152 | -10/Materials | Discovered new exit (range 16) 1662 | -10/Materials | Discovered new exit (range 5) 1688 | -10/Materials | Entered Subcaves 1933 | -10/Subcaves | Learned location of Zion (-6) 1933 | -10/Subcaves | Met a Zionite searching for "candidates" 2690 | -10/Subcaves | Shifting Twisted Machinery released Battle Cannon 2725 | -10/Subcaves | Shifting Twisted Machinery released Battle Cannon 2758 | -10/Subcaves | A Subdweller sparked back to life 2758 | -10/Subcaves | A Subdweller sparked back to life 2758 | -10/Subcaves | A Subdweller sparked back to life 2874 | -10/Subcaves | Discovered new exit (range 14) 3097 | -10/Subcaves | Visited Clippyterm 3104 | -10/Subcaves | Learned 40 Factory zone layouts 3452 | -10/Subcaves | Entered Materials 3452 | -8/Materials | Evolved 4 slots: Propulsion x1, Utility x2, Weapon x1 3753 | -8/Materials | Lost 3 parts (1u2w) 3885 | -8/Materials | Lost 8 parts (1p3n2u2w) 3943 | -8/Materials | Core integrity fell below 50% 4121 | -8/Materials | Build established: Mutant 4226 | -8/Materials | Core integrity fell below 20% 4249 | -8/Materials | Destroyed by H-55 Commando with Assault Rifle Last Messages --------------- Penetrated by Slug. Assault Rifle destroyed. Penetrated by Slug. K-01 Serf collects debris. Penetrated by Slug. Imp. Light Armor Plating destroyed. Penetrated by Slug. K-01 Serf collects debris. Penetrated by Slug. Slug penetrates Wall. Penetrated by Slug. Lgt. Nuclear Core destroyed. K-01 Serf collects debris. Penetrated by Slug. K-01 Serf collects debris. Penetrated by Slug. K-01 Serf suffers critical hit (Destroy). K-01 Serf destroyed. Acquired 39 matter. Slug penetrates Wall. Map ----- +----------------------------------------------------+ | ???????????????????# #???????????? | | ???????????????????###### ########## #???????????? | | ????????????????????????# #??#######+########????? | | ????????????????????????# #??# # ###### | | ????????????????????????# #??# # | | ????????????????????????# #??# + T | | ????????????????????????# #??# # | | ????????????????????????# #??# # ###### | | ????????????????????##### #??# ## ##????? | | ????????????????????#!! #??# ## #?????? | | ????????????????????#!! #??# ## #?????? | | ????????????????????#!! #??# ## +?????? | | ????????????????????#!! ############## #?????? | | ????????????????????#] #?????? | | ????????????????????#]] ################ #?????? | | ????????????????????#####????????????####+#####??? | | ????????????????????##########???????# #??? | | ????????????????????# #???????# "" #??? | | ????????????????????# """ #???????# ""S #??? | | ????????????????????# """"" ####+#### "" #??? | | ????????????????????# """"= ;|%= + #??? | | ????????????????????# "" %= #### # """ #??? | | ????????????????????# " ! #??# # """ #??? | | ????????????????????# #??# + """ #??? | | ????????????????????# ==! #??# #### #??? | | ????????????????????# =* @! #??# #??##########??? | | ????????????????????####;;######a ??????????????? | | ?????????????????????##% % T #?????????????? | | ???????????????????? +%h ###### ??????????????? | | ??????????????????? #%% # ##?####??????????????? | | ?????????????????? +| #? ????????????????????? | | ????????????????? # #?? ???????????????????? | | ????????????????####### #??? ??????????????????? | | ?????????????????##???# #???? ?????????????????? | | ?????????????????????? #????? ????????????????? | | ????????????????????? %%+????? ???????????????? | | ????????????????????? #?????? +??????????????? | | ?????????????????????## #??????????????????????? | | ??????????????????????# #??????????????????????? | | ??????????????????????# #??????????????????????? | | ??????????????????????# #??????????????????????? | | ??????????????????????# #??????????????????????? | | ?????????????????????? ???????????????????????? | | ?????????????????????? ???????????????????????? | | ?????????????????????? ???????????????????????? | | ??????????????????????? ???????????????????????? | | ?????????????????????????????????????????????????? | | ?????????????????????????????????????????????????? | | ?????????????????????????????????????????????????? | | ?????????????????????????????????????????????????? | +----------------------------------------------------+ Best States ------------- Heat Dissipation 41 Energy Generation 15 Energy Capacity 200 Matter Stores 300 Matter Capacity 500 Sight Range 21 Terrain Scan Density 10 ECM Strength 1 Armor Coverage 225 Evasion (%) 40 Targeting Accuracy 5 Recoil Reduction 3 Item Schematics ----------------- Hrd. Medium Armor Plating | -8/Materials | Scanalyzed Robot Schematics ------------------ None Fabricated ------------ Nothing Alien Tech Used ----------------- None Achievements -------------- None Challenges ------------ None Game ------ Seed TargetMatterShield Manual? 0 Play Time 00:25:14 Cumulative 33.9 hours Start 2024.04.18 @ 19:01:28 End 2024.04.18 @ 19:24:12 Sessions 1 Manual Loads 0 Difficulty Rogue Special Mode None Game No. 33 Rogue 33 Adventurer 0 Explorer 0 Win Type - Total 2 Types 2/0/0/0/0/0/0/0/0 Lore% 30 Gallery% 34 Achievement% 32 Wizard Run 0 Options --------- Layout 1 ASCII 0 Keyboard 0 Movement Arrows Keybinds 0 Fullscreen 1 Font 24/Smallcaps Map View 50x35 Zoom Use 0% Tactical HUD 0 Map Filters NONE Filters NONE Steam 1 RUN: 028f97f7-7a62-4c6f-aba2-6451f93c06c2